bitfinex/quotes_BTCUSD_20250714
["timestamp","ask_amount","ask_price","bid_price","bid_amount"]
[1752454936387,0.73347668,118890.0,118880.0,0.22184]
[1752454936600,0.75138668,118890.0,118880.0,0.35004]
[1752454936799,0.44650993,118890.0,118880.0,0.35004]
[1752454936999,0.43070993,118890.0,118880.0,0.35004]
[1752454937620,0.43070993,118890.0,118880.0,0.352]
[1752454937819,0.43070993,118890.0,118880.0,0.22184]
[1752454937820,0.84197528,118890.0,118880.0,0.22184]
[1752454938070,0.76678668,118890.0,118880.0,0.35004]
[1752454938306,0.76678668,118890.0,118880.0,0.34164145]
[1752454938672,0.76678668,118890.0,118880.0,0.3332429]
[1752454939093,0.46190993,118890.0,118880.0,0.20152]
[1752454939291,0.76678668,118890.0,118880.0,0.20152]
[1752454940359,0.76678668,118890.0,118880.0,0.32976]
[1752454941001,0.42753993,118890.0,118880.0,0.20348]
[1752454941206,0.00049935,118900.0,118880.0,0.67222675]
[1752454941403,0.58542993,118900.0,118880.0,0.67222675]
[1752454941623,0.08542993,118900.0,118880.0,0.67222675]
[1752454942041,0.005,118890.0,118880.0,0.67322675]
[1752454942247,0.08542993,118900.0,118880.0,0.67222675]
[1752454942459,0.42542993,118900.0,118880.0,0.67222675]
[1752454942666,0.42542993,118900.0,118880.0,0.67322675]
[1752454942667,0.42942993,118900.0,118880.0,0.67322675]
[1752454943115,0.42942993,118900.0,118880.0,0.36835]
[1752454943342,0.42942993,118900.0,118880.0,0.67322675]
[1752454943547,0.43259993,118900.0,118880.0,0.67322675]
[1752454944001,0.44849993,118900.0,118880.0,0.20765]
[1752454944212,0.00211,118890.0,118880.0,0.20448]
[1752454944457,0.00211,118890.0,118880.0,0.33268]
[1752454944887,0.30698675,118890.0,118880.0,0.20448]
[1752454945090,0.30698675,118890.0,118880.0,0.33076]
[1752454945091,0.31015675,118890.0,118880.0,0.33076]
[1752454945301,0.32615675,118890.0,118880.0,0.20152]
[1752454945513,0.32615675,118890.0,118880.0,0.32976]
[1752454945777,0.76778668,118890.0,118880.0,0.32976]
[1752454946402,0.75158668,118890.0,118880.0,0.32976]
[1752454946609,0.75658668,118890.0,118880.0,0.33076]
[1752454951116,0.345,118890.0,118880.0,0.67275675]
[1752454951838,0.345,118890.0,118880.0,0.36788]
[1752454953747,0.64987675,118890.0,118880.0,0.36266]
[1752454953991,0.64987675,118890.0,118880.0,0.36788]
[1752454954222,0.345,118890.0,118880.0,0.36788]
[1752454956308,0.345,118890.0,118880.0,0.33598]
[1752454956541,0.6730404,118890.0,118880.0,0.33279]
[1752454956775,0.36816365,118890.0,118880.0,0.33279]
[1752454959485,0.79037033,118890.0,118880.0,0.33124]
[1752454959966,1.19037033,118890.0,118880.0,0.33124]
[1752454964562,1.21392751,118890.0,118880.0,0.33124]
[1752454965615,1.21392718,118890.0,118880.0,0.33124]
[1752454967157,0.90905043,118890.0,118880.0,0.33124]
[1752454967365,1.21392718,118890.0,118880.0,0.33124]
[1752454968524,1.2139289,118890.0,118880.0,0.33124]
[1752454968814,1.21393212,118890.0,118880.0,0.33124]
[1752454969054,0.81393242,118890.0,118880.0,0.33124]
[1752454969524,1.21393149,118890.0,118880.0,0.33124]
[1752454972660,0.81393149,118890.0,118880.0,0.331]
[1752454973088,0.83652384,118890.0,118880.0,0.331]
[1752454974196,0.81393149,118890.0,118880.0,0.331]
[1752454974445,0.3713,118880.0,118870.0,0.0004]
[1752454974663,0.80833149,118880.0,118870.0,0.3304]
[1752454975339,0.83324494,118880.0,118870.0,0.3304]
[1752454975571,0.83324383,118880.0,118870.0,0.3304]
[1752454976499,0.82539122,118880.0,118870.0,0.3304]
[1752454976732,0.83324175,118880.0,118870.0,0.3304]
[1752454977173,0.83323517,118880.0,118870.0,0.3304]
[1752454977398,0.82538471,118880.0,118870.0,0.3304]
[1752454977620,0.82538086,118880.0,118870.0,0.3304]
[1752454978507,1.48009578,118880.0,118870.0,0.20156]
[1752454978727,1.39479846,118880.0,118870.0,0.20156]
[1752454978952,1.42543732,118880.0,118870.0,0.20156]
[1752454979833,1.42543732,118880.0,118870.0,0.33]
[1752454980083,1.42543732,118880.0,118860.0,0.0024]
[1752454980326,0.77905753,118870.0,118860.0,0.0024]
[1752454980541,0.34,118860.0,118850.0,0.07439916]
[1752454980759,0.78221376,118860.0,118850.0,0.07439916]
[1752454980972,1.10020741,118860.0,118850.0,0.06599832]
[1752454981387,1.08221376,118860.0,118850.0,0.18603748]
[1752454981811,1.08221376,118860.0,118850.0,0.17813599]
[1752454982308,1.08221376,118860.0,118850.0,0.12959429]
[1752454982522,0.0311,118850.0,118840.0,0.00046]
[1752454982728,0.77910376,118850.0,118840.0,0.00046]
[1752454982978,0.49962237,118850.0,118840.0,0.00046]
[1752454983191,0.80449912,118850.0,118840.0,0.00046]
[1752454983405,0.48576895,118850.0,118840.0,0.00046]
[1752454983627,0.7906457,118850.0,118840.0,0.00046]
[1752454984083,0.7906457,118850.0,118840.0,0.12938]
[1752454984980,0.79059808,118850.0,118840.0,0.12938]
[1752454985477,0.79059917,118850.0,118840.0,0.33098]
[1752454987622,0.77494862,118850.0,118840.0,0.33098]
[1752454990156,0.75914862,118850.0,118840.0,0.33098]
[1752454991098,0.43586187,118850.0,118840.0,0.20702]
[1752454991332,0.43386187,118850.0,118840.0,0.36684]
[1752454993232,0.43386187,118850.0,118840.0,0.35164]
[1752454993475,0.73873862,118850.0,118840.0,0.33614]
[1752454993680,0.43386187,118850.0,118840.0,0.33614]
[1752454993939,0.73873862,118850.0,118840.0,0.33614]
[1752454994160,0.74073862,118850.0,118840.0,0.33614]
[1752454994673,0.75636617,118850.0,118840.0,0.33614]
[1752454994917,0.75436617,118850.0,118840.0,0.36834]
[1752454995149,0.44948942,118850.0,118840.0,0.36834]
[1752454996285,0.45148942,118850.0,118840.0,0.33614]
[1752454996959,0.43586187,118850.0,118840.0,0.33614]
[1752454997203,0.43386187,118850.0,118840.0,0.36834]
[1752454997439,0.43386187,118850.0,118840.0,0.23922]
[1752454997655,0.09386187,118850.0,118840.0,0.67313675]
[1752454998394,0.43386187,118850.0,118840.0,0.67313675]
[1752454998608,0.34843194,118850.0,118840.0,0.67313675]
[1752454999330,0.00843194,118850.0,118840.0,0.67313675]
[1752454999702,0.30049904,118860.0,118840.0,0.67313675]
[1752454999933,0.30049904,118860.0,118850.0,0.33934675]
[1752455000160,0.30049904,118860.0,118850.0,0.34133675]
[1752455000597,0.64049904,118860.0,118850.0,0.34133675]
[1752455000818,0.34049904,118860.0,118850.0,0.34133675]
[1752455001496,0.34878404,118860.0,118850.0,0.03646]
[1752455001715,0.34878404,118860.0,118850.0,0.34344024]
[1752455001936,0.34878404,118860.0,118850.0,0.34133675]
[1752455002372,0.34878404,118860.0,118850.0,0.03646]
[1752455002592,0.34878404,118860.0,118850.0,0.34344024]
[1752455002810,0.34878404,118860.0,118850.0,0.34133675]
[1752455003041,0.34878404,118860.0,118850.0,0.03646]
[1752455003292,0.34878404,118860.0,118850.0,0.34133675]
[1752455006429,0.34878404,118860.0,118850.0,0.24133675]
[1752455006643,0.34878404,118860.0,118850.0,0.24321675]
[1752455009270,0.34878404,118860.0,118850.0,0.27571675]
[1752455009743,0.34878404,118860.0,118850.0,0.27689675]
[1752455010627,0.34878404,118860.0,118850.0,0.27571675]
[1752455013989,0.64878404,118860.0,118850.0,0.27571675]
[1752455017211,0.64878404,118860.0,118850.0,0.27689675]
[1752455017212,0.34878404,118860.0,118850.0,0.27689675]
[1752455017453,0.00878404,118860.0,118850.0,0.57259675]
[1752455020895,0.00878404,118860.0,118850.0,0.65802668]
[1752455029957,0.00049904,118860.0,118850.0,0.67256753]
[1752455032830,0.00049904,118860.0,118850.0,0.92960753]
[1752455033297,0.00049904,118860.0,118850.0,1.03440753]
[1752455034213,0.008,118880.0,118870.0,0.04644085]
[1752455034456,0.008,118880.0,118870.0,1.29566524]
[1752455034662,0.008,118880.0,118870.0,1.29684524]
[1752455035566,0.01661252,118880.0,118870.0,1.29684524]
[1752455035790,0.008,118880.0,118870.0,1.29684524]
[1752455036004,0.008,118880.0,118870.0,0.99196849]
[1752455037130,0.008,118880.0,118870.0,1.29684524]
[1752455037570,0.008,118880.0,118870.0,1.29644524]
[1752455038326,0.008,118880.0,118870.0,0.99156849]
[1752455039459,0.01621565,118880.0,118870.0,0.99156849]
[1752455039919,0.008,118880.0,118870.0,1.29644524]
[1752455041031,0.002,118890.0,118880.0,0.94289531]
[1752455041243,0.002,118890.0,118880.0,1.28870524]
[1752455045072,0.002,118890.0,118880.0,1.28752524]
[1752455045291,0.002,118890.0,118880.0,0.51773174]
[1752455045552,0.00524,118890.0,118880.0,0.80810764]
[1752455045772,0.44634857,118890.0,118880.0,0.72079771]
[1752455045984,0.379,118890.0,118880.0,0.72079771]
[1752455048986,0.379,118890.0,118880.0,0.92231771]
[1752455053225,0.342,118890.0,118880.0,0.92419771]
[1752455053674,0.34524,118890.0,118880.0,0.92419771]
[1752455053861,0.36154,118890.0,118880.0,0.92419771]
[1752455055782,0.34524,118890.0,118880.0,0.92419771]
[1752455057310,0.36054,118890.0,118880.0,0.92419771]
[1752455058431,0.3778,118890.0,118880.0,0.92419771]
[1752455059670,0.34524,118890.0,118880.0,0.92419771]
[1752455061081,0.37654,118890.0,118880.0,0.61932096]
[1752455061303,0.3786,118890.0,118880.0,0.92419771]
[1752455064579,0.3629,118890.0,118880.0,0.92419771]
[1752455065421,0.3785,118890.0,118880.0,0.92419771]
[1752455065560,0.3785,118890.0,118880.0,0.61932096]
[1752455070303,0.3785,118890.0,118880.0,0.61744096]
[1752455074194,0.3785,118890.0,118880.0,0.48872096]
[1752455074488,0.68337675,118890.0,118880.0,0.61716096]
[1752455074733,0.68337675,118890.0,118880.0,0.48872096]
[1752455074993,0.68337675,118890.0,118880.0,0.61732096]
[1752455076045,0.3785,118890.0,118880.0,0.61732096]
[1752455077416,0.3785,118890.0,118880.0,0.61920096]
[1752455078371,0.342,118890.0,118880.0,0.92407771]
[1752455078617,0.342,118890.0,118880.0,1.05704849]
[1752455079609,0.342,118890.0,118880.0,1.05822849]
[1752455080352,0.002,118890.0,118880.0,1.05822849]
[1752455081852,0.002,118890.0,118880.0,1.36310524]
[1752455082382,0.002,118890.0,118880.0,1.28450524]
[1752455082622,0.002,118890.0,118880.0,1.41302524]
[1752455082839,0.002,118890.0,118880.0,1.46302524]
[1752455084315,0.002,118890.0,118880.0,1.41302524]
[1752455084561,0.002,118890.0,118880.0,1.46302524]
[1752455085014,0.002,118890.0,118880.0,1.41302524]
[1752455085293,0.002,118890.0,118880.0,1.46302524]
[1752455086296,0.002,118890.0,118880.0,1.41302524]
[1752455086554,0.002,118890.0,118880.0,1.46302524]
[1752455088000,0.00317,118920.0,118900.0,0.3194176]
[1752455088218,0.03397,118920.0,118910.0,0.21386993]
[1752455088449,0.03595,118920.0,118910.0,0.21386993]
[1752455089119,0.34515,118920.0,118910.0,0.52062668]
[1752455089390,0.34515,118920.0,118910.0,0.52067644]
[1752455089642,0.34,118920.0,118910.0,0.52067644]
[1752455089861,0.34842869,118920.0,118910.0,0.52067644]
[1752455090756,0.34842869,118920.0,118910.0,0.39223644]
[1752455090976,0.34842869,118920.0,118910.0,0.52067644]
[1752455091404,0.34842869,118920.0,118910.0,0.53521729]
[1752455091953,0.00842869,118920.0,118910.0,0.82041825]
[1752455091955,0.00842869,118920.0,118910.0,0.83701825]
[1752455092168,0.002,118930.0,118920.0,0.01454085]
[1752455092382,0.002,118930.0,118920.0,0.53722978]
[1752455092577,0.002,118930.0,118920.0,0.53512753]
[1752455092795,0.01048,118930.0,118920.0,0.53512753]
[1752455093014,0.002,118930.0,118920.0,0.53512753]
[1752455093642,0.00517,118930.0,118920.0,0.53512753]
[1752455093858,0.02325,118930.0,118920.0,0.53512753]
[1752455096279,0.00715,118930.0,118920.0,0.53512753]
[1752455096705,0.00715,118930.0,118920.0,0.82032849]
[1752455096927,0.02325,118930.0,118920.0,0.82032849]
[1752455097138,0.03166637,118930.0,118920.0,0.82032849]
[1752455097955,0.01041637,118930.0,118920.0,0.82032849]
[1752455098205,0.01041637,118930.0,118920.0,0.85092849]
[1752455098403,0.01041637,118930.0,118920.0,1.15698524]
[1752455098833,0.01041637,118930.0,118920.0,0.85210849]
[1752455099236,0.002,118930.0,118920.0,0.85210849]
[1752455099448,0.002,118930.0,118920.0,0.54723174]
[1752455099645,0.002,118930.0,118920.0,0.72370849]
[1752455099879,0.002,118930.0,118920.0,0.85198849]
[1752455100087,0.002,118930.0,118920.0,0.85206849]
[1752455100703,0.002,118930.0,118920.0,0.85088849]
[1752455101141,0.002,118930.0,118920.0,0.82028849]
[1752455101592,0.002,118930.0,118920.0,0.51541174]
[1752455101799,0.002,118930.0,118920.0,0.82028849]
[1752455102695,0.002,118930.0,118920.0,0.85386849]
[1752455102913,0.002,118930.0,118920.0,1.15874524]
[1752455104044,0.002,118930.0,118920.0,0.85355104]
[1752455105123,0.002,118930.0,118920.0,1.15842779]
[1752455105345,0.342,118950.0,118930.0,0.28320096]
[1752455105559,0.342,118950.0,118940.0,0.75704858]
[1752455105560,0.002,118950.0,118940.0,0.75704858]
[1752455105831,0.002,118950.0,118940.0,0.75494668]
[1752455106696,0.002,118950.0,118940.0,0.76948753]
[1752455107377,0.002,118950.0,118940.0,0.81948753]
[1752455107588,0.002,118950.0,118940.0,0.86948753]
[1752455107803,0.002,118950.0,118940.0,1.36098753]
[1752455108284,0.002,118950.0,118940.0,1.66586428]
[1752455108468,0.1,118960.0,118950.0,0.11454085]
[1752455108700,0.1,118960.0,118950.0,1.10044428]
[1752455109126,0.1,118960.0,118950.0,0.79556753]
[1752455109349,0.1,118960.0,118950.0,1.10044428]
[1752455111354,0.06734857,118980.0,118970.0,0.18320096]
[1752455111572,0.06784792,118980.0,118970.0,0.83218764]
[1752455112442,0.00149935,118980.0,118970.0,0.83518764]
[1752455113980,0.00149935,118980.0,118970.0,0.85176764]
[1752455114188,0.00149935,118980.0,118970.0,0.86676764]
[1752455114857,0.00149935,118980.0,118970.0,0.88130849]
[1752455115285,0.00049935,118980.0,118970.0,0.98298849]
[1752455115472,0.00049935,118980.0,118970.0,1.03298849]
[1752455115674,0.00149935,118980.0,118970.0,1.03798849]
[1752455116251,0.00149935,118980.0,118970.0,0.73311174]
[1752455116457,0.00149935,118980.0,118970.0,1.03798849]
[1752455117346,0.02800748,119000.0,118990.0,0.01454085]
[1752455117511,0.00329974,119000.0,118990.0,0.66400753]
[1752455117939,0.02861532,119000.0,118990.0,0.66400753]
[1752455118245,0.02024974,119000.0,118990.0,0.66400753]
[1752455119042,0.00034974,119000.0,118990.0,0.66400753]
[1752455119251,0.00134974,119000.0,118990.0,0.66500753]
[1752455119452,0.02039974,119000.0,118990.0,0.66500753]
[1752455120338,0.01939974,119000.0,118990.0,0.84570914]
[1752455120510,0.00134974,119000.0,118990.0,0.84670914]
[1752455125426,0.00134974,119000.0,118990.0,0.91408914]
[1752455125657,0.00134974,119000.0,118990.0,0.31735239]
[1752455125876,0.01979974,119000.0,118990.0,0.71810914]
[1752455126028,0.01979974,119000.0,118990.0,0.58942914]
[1752455126254,0.00624974,119000.0,118990.0,0.41319239]
[1752455126455,0.00134974,119000.0,118990.0,0.71806914]
[1752455126656,0.00034974,119000.0,118990.0,0.74866914]
[1752455127044,0.00134974,119000.0,118990.0,0.75266914]
[1752455127239,0.00134974,119000.0,118990.0,0.75270914]
[1752455127874,0.00134974,119000.0,118990.0,0.62402914]
[1752455128089,0.00134974,119000.0,118990.0,0.75266914]
[1752455128292,0.00134974,119000.0,118990.0,0.62402914]
[1752455128495,0.00134974,119000.0,118990.0,0.72106914]
[1752455130907,0.00134974,119000.0,118990.0,0.92238914]
[1752455132708,0.00134974,119000.0,118990.0,0.95458914]
[1752455132923,0.00134974,119000.0,118990.0,0.95576914]
[1752455133792,0.00134974,119000.0,118990.0,0.95458914]
[1752455134681,0.00134974,119000.0,118990.0,0.93848914]
[1752455134899,0.00134974,119000.0,118990.0,0.92238914]
[1752455135554,0.03772974,119000.0,118990.0,0.92238914]
[1752455136498,0.05340139,119000.0,118990.0,0.92238914]
[1752455136921,0.01702139,119000.0,118990.0,0.92238914]
[1752455138526,0.01703193,119000.0,118990.0,0.92238914]
[1752455138993,0.01703193,119000.0,118990.0,0.95526914]
[1752455140102,0.01703193,119000.0,118990.0,0.93926914]
[1752455140558,0.01703193,119000.0,118990.0,0.95576914]
[1752455140799,0.01703193,119000.0,118990.0,1.31064589]
[1752455141019,0.0002,119010.0,119000.0,0.82066403]
[1752455141242,0.00024987,119010.0,119000.0,1.16599396]
[1752455142143,0.00124987,119010.0,119000.0,1.16799396]
[1752455142422,0.00124987,119010.0,119000.0,0.86311721]
[1752455142629,0.01754987,119010.0,119000.0,0.83023721]
[1752455143300,0.01754987,119010.0,119000.0,0.26664046]
[1752455143301,0.03882987,119010.0,119000.0,0.26664046]
[1752455143521,0.68370662,119010.0,119000.0,0.25209961]
[1752455143736,0.68370662,119010.0,119000.0,0.45337961]
[1752455143956,0.68370662,119010.0,119000.0,0.33176]
[1752455144614,0.68370662,119010.0,119000.0,0.3318]
[1752455145034,0.77270662,119010.0,119000.0,0.20128]
[1752455145257,0.77370662,119010.0,119000.0,0.33084]
[1752455145499,0.77270662,119010.0,119000.0,0.20128]
[1752455145717,0.77270662,119010.0,119000.0,0.32984]
[1752455147044,0.77370662,119010.0,119000.0,0.33084]
[1752455148652,1.1640133,119010.0,119000.0,0.20228]
[1752455148885,1.1640133,119010.0,118970.0,0.10468]
[1752455149110,0.30487675,118980.0,118970.0,0.10468]
[1752455149365,0.30690675,118980.0,118970.0,0.306]
[1752455149591,0.67910675,118980.0,118970.0,0.306]
[1752455149815,0.68225675,118980.0,118970.0,0.306]
[1752455150215,0.68225675,118980.0,118970.0,0.43456]
[1752455150469,0.68225675,118980.0,118970.0,0.43856]
[1752455150899,0.68225675,118980.0,118970.0,0.43456]
[1752455151121,0.67605946,118980.0,118970.0,0.43656]
[1752455153165,0.76148939,118980.0,118970.0,0.43656]
[1752455153811,0.76048939,118980.0,118970.0,0.43456]
[1752455154026,0.76148939,118980.0,118970.0,0.43556]
[1752455154912,0.76148939,118980.0,118970.0,0.33088]
[1752455155136,0.76148939,118980.0,118970.0,0.20136]
[1752455155578,0.76118939,118980.0,118970.0,0.20136]
[1752455155799,0.776849,118980.0,118970.0,0.20136]
[1752455156224,0.776849,118980.0,118970.0,0.32996]
[1752455156931,0.776849,118980.0,118970.0,0.20136]
[1752455157157,0.775849,118980.0,118970.0,0.20136]
[1752455157609,0.777849,118980.0,118970.0,0.20236]
[1752455158247,0.34,118970.0,118920.0,0.2977]
[1752455158472,0.67077946,118940.0,118930.0,0.12856]
[1752455158687,0.67595946,118940.0,118930.0,0.12856]
[1752455159606,0.67595946,118940.0,118930.0,0.12905935]
[1752455160543,0.37828,118940.0,118930.0,0.12901935]
[1752455161436,0.38675695,118940.0,118930.0,0.12901935]
[1752455161863,0.38575695,118940.0,118930.0,0.12901935]
[1752455162358,0.38675695,118940.0,118930.0,0.13101935]
[1752455165348,0.38675695,118940.0,118930.0,0.33241935]
[1752455169776,0.68443641,118940.0,118930.0,0.33241935]
[1752455173089,0.6917512,118940.0,118930.0,0.33241935]
[1752455175586,0.38675695,118940.0,118930.0,0.33241935]
[1752455175812,0.6917512,118940.0,118930.0,0.33241935]
[1752455187809,0.6917512,118940.0,118930.0,0.20389935]
[1752455188035,0.6917512,118940.0,118930.0,0.33229935]
[1752455188270,0.79530809,118940.0,118930.0,0.33229935]
[1752455188737,0.79530809,118940.0,118930.0,0.20389935]
[1752455188955,1.15279959,118940.0,118930.0,0.33233935]
[1752455189190,0.82534855,118940.0,118930.0,0.33233935]
[1752455189416,0.8336842,118940.0,118930.0,0.33233935]
[1752455190995,0.81102581,118940.0,118930.0,0.33233935]
[1752455194158,0.81101622,118940.0,118930.0,0.33233935]
[1752455194375,0.82555707,118940.0,118930.0,0.33233935]
[1752455194806,0.84821546,118940.0,118930.0,0.33233935]
[1752455195424,0.82555707,118940.0,118930.0,0.33233935]
[1752455195852,0.35454085,118930.0,118920.0,0.002]
[1752455196058,1.50200741,118930.0,118920.0,0.33202974]
[1752455196267,1.50200741,118930.0,118910.0,0.20148]
[1752455196268,1.12013437,118930.0,118910.0,0.20148]
[1752455196477,1.06964843,118920.0,118910.0,0.20148]
[1752455196682,1.08746656,118920.0,118910.0,0.32988]
[1752455197101,1.08746189,118920.0,118910.0,0.32988]
[1752455197723,1.48746189,118920.0,118910.0,0.32988]
[1752455198365,1.50554026,118920.0,118910.0,0.32988]
[1752455199404,1.48746189,118920.0,118910.0,0.32988]
[1752455200707,0.39204346,118920.0,118910.0,0.32988]
[1752455200916,0.39204346,118920.0,118910.0,0.33176]
[1752455200917,0.36074346,118920.0,118910.0,0.33176]
[1752455201118,0.66573771,118920.0,118910.0,0.33176]
[1752455201332,0.69763771,118920.0,118910.0,0.32988]
[1752455201573,1.08806189,118920.0,118910.0,0.20148]
[1752455201832,1.08806189,118920.0,118910.0,0.32988]
[1752455202265,1.08806189,118920.0,118910.0,0.32996]
[1752455202691,1.07235843,118920.0,118910.0,0.32996]
[1752455202927,1.08804238,118920.0,118910.0,0.32996]
[1752455205970,1.08803977,118920.0,118910.0,0.32996]
[1752455207452,1.38803977,118920.0,118910.0,0.32996]
[1752455207880,0.77805127,118920.0,118910.0,0.32996]
[1752455208115,1.38803977,118920.0,118910.0,0.32996]
[1752455208329,1.08304552,118920.0,118910.0,0.32996]
[1752455208743,1.06736418,118920.0,118910.0,0.32996]
[1752455209610,1.37235843,118920.0,118910.0,0.32996]
[1752455211149,1.37235843,118920.0,118910.0,0.20148]
[1752455211334,1.38803995,118920.0,118910.0,0.32984]
[1752455211545,1.37235843,118920.0,118910.0,0.32984]
[1752455212087,1.77235843,118920.0,118910.0,0.32984]
[1752455212592,1.37235843,118920.0,118910.0,0.32984]
[1752455217845,1.06736418,118920.0,118910.0,0.32984]
[1752455218299,1.03546418,118920.0,118910.0,0.32984]
[1752455218548,1.03546418,118920.0,118910.0,0.33172]
[1752455219020,1.03042418,118920.0,118910.0,0.33172]
[1752455219728,0.73042418,118920.0,118910.0,0.33172]
[1752455220178,0.73042418,118920.0,118910.0,0.36302]
[1752455220856,0.34,118920.0,118910.0,0.36302]
[1752455221305,0.64499425,118920.0,118910.0,0.34742]
[1752455221534,0.73802425,118920.0,118910.0,0.33172]
[1752455222232,0.73802425,118920.0,118910.0,0.32984]
[1752455222233,0.74010425,118920.0,118910.0,0.32984]
[1752455223430,1.16312843,118920.0,118910.0,0.20148]
[1752455223660,1.16312843,118920.0,118910.0,0.32984]
[1752455224146,1.19578525,118920.0,118910.0,0.20152]
[1752455224364,1.21150401,118920.0,118910.0,0.3302]
[1752455224569,0.38584085,118910.0,118900.0,0.20356976]
[1752455224784,1.18137503,118910.0,118900.0,0.20356976]
[1752455225454,1.19949077,118910.0,118900.0,0.20356976]
[1752455225666,1.18137503,118910.0,118900.0,0.33224976]
[1752455225883,1.21521598,118910.0,118900.0,0.33224976]
[1752455226087,1.19709991,118910.0,118900.0,0.33224976]
[1752455226315,1.2152139,118910.0,118900.0,0.33224976]
[1752455227190,1.19709991,118910.0,118900.0,0.33224976]
[1752455227631,1.18137503,118910.0,118900.0,0.33224976]
[1752455227851,1.19710038,118910.0,118900.0,0.33224976]
[1752455229412,1.15125949,118910.0,118900.0,0.33224976]
[1752455229628,1.13553418,118910.0,118900.0,0.33224976]
[1752455230066,1.15125909,118910.0,118900.0,0.33224976]
[1752455230308,0.76725909,118910.0,118900.0,0.33224976]
[1752455230528,0.75053418,118910.0,118900.0,0.33224976]
[1752455230736,1.15053418,118910.0,118900.0,0.33224976]
[1752455231631,1.16626088,118910.0,118900.0,0.33224976]
[1752455232477,1.15053418,118910.0,118900.0,0.33224976]
[1752455233125,0.84553993,118910.0,118900.0,0.33224976]
[1752455233334,1.15053418,118910.0,118900.0,0.33224976]
[1752455234411,1.14953418,118910.0,118900.0,0.33224976]
[1752455236659,1.13353418,118910.0,118900.0,0.33224976]
[1752455237312,1.14893418,118910.0,118900.0,0.33224976]
[1752455237545,1.16493418,118910.0,118900.0,0.33224976]
[1752455239070,0.76493418,118910.0,118900.0,0.33224976]
[1752455241297,0.76493418,118910.0,118900.0,0.20356976]
[1752455241512,0.76493418,118910.0,118900.0,0.33212976]
[1752455241722,0.76493418,118910.0,118900.0,0.20152]
[1752455241949,0.79873812,118910.0,118900.0,0.33008]
[1752455242162,0.79893812,118910.0,118900.0,0.20152]
[1752455243214,0.84932812,118910.0,118900.0,0.20152]
[1752455243376,0.85559879,118910.0,118900.0,0.12852]
[1752455243787,0.0158,118900.0,118870.0,0.0321]
[1752455244010,1.23042418,118890.0,118870.0,0.03328]
[1752455244210,0.73345418,118890.0,118880.0,0.00188]
[1752455244829,0.73553418,118890.0,118880.0,0.00188]
[1752455245034,0.73553418,118890.0,118880.0,0.1304]
[1752455245243,0.73553418,118890.0,118880.0,0.33192]
[1752455246065,1.13553418,118890.0,118880.0,0.33192]
[1752455250680,1.13042418,118890.0,118880.0,0.34822]
[1752455251769,1.13042418,118890.0,118880.0,0.33192]
[1752455251955,1.13360418,118890.0,118880.0,0.33192]
[1752455252199,1.13576418,118890.0,118880.0,0.33192]
[1752455252641,1.16796418,118890.0,118880.0,0.33004]
[1752455255815,0.76796418,118890.0,118880.0,0.33004]
[1752455256031,0.76696418,118890.0,118880.0,0.33004]
[1752455256696,1.07195843,118890.0,118880.0,0.33]
[1752455256943,1.07195843,118890.0,118880.0,0.20156]
[1752455257385,1.04575843,118890.0,118880.0,0.20156]
[1752455257833,1.06195843,118890.0,118880.0,0.20156]
[1752455258054,1.094262,118890.0,118880.0,0.20156]
[1752455258288,1.07615843,118890.0,118880.0,0.12844]
[1752455258502,0.0304,118880.0,118860.0,0.0024]
[1752455258724,1.26298418,118870.0,118860.0,0.0024]
[1752455258936,0.76616418,118870.0,118860.0,0.0024]
[1752455259182,0.73576418,118870.0,118860.0,0.0024]
[1752455259411,0.45080873,118870.0,118860.0,0.00428]
[1752455259645,0.45080873,118870.0,118860.0,0.02038]
[1752455259805,0.45080873,118870.0,118860.0,0.14886]
[1752455260036,0.45089252,118870.0,118860.0,0.14886]
[1752455260209,0.45407252,118870.0,118860.0,0.14886]
[1752455260414,0.45407252,118870.0,118860.0,0.13276]
[1752455261086,0.76406677,118870.0,118860.0,0.13276]
[1752455264132,0.76622677,118870.0,118860.0,0.13088]
[1752455264568,0.78212677,118870.0,118860.0,0.13088]
[1752455264997,0.79832677,118870.0,118860.0,0.13088]
[1752455265425,0.79832677,118870.0,118860.0,0.33244]
[1752455265642,0.78212677,118870.0,118860.0,0.33244]
[1752455266532,0.76622677,118870.0,118860.0,0.33244]
[1752455266983,0.76622677,118870.0,118860.0,0.33432]
[1752455267430,0.34508379,118870.0,118860.0,0.36742]
[1752455267649,0.34508379,118870.0,118860.0,0.3686]
[1752455268924,0.34508379,118870.0,118860.0,0.67359425]
[1752455269146,0.34508379,118870.0,118860.0,0.3686]
[1752455271956,0.34508379,118870.0,118860.0,0.36742]
[1752455274196,0.34508379,118870.0,118860.0,0.6881351]
[1752455277471,0.34508379,118870.0,118860.0,0.77356503]
[1752455278584,0.34008379,118870.0,118860.0,0.77356503]
[1752455279033,0.34208379,118870.0,118860.0,0.77356503]
[1752455279256,0.34008379,118870.0,118860.0,0.77356503]
[1752455279471,0.34108379,118870.0,118860.0,0.77356503]
[1752455280136,0.34108379,118870.0,118860.0,1.06926503]
[1752455281010,0.34108379,118870.0,118860.0,1.06942503]
[1752455284096,0.00108379,118870.0,118860.0,1.06942503]
[1752455284334,0.00108379,118870.0,118860.0,1.37441928]
[1752455284552,0.00108379,118870.0,118860.0,1.06942503]
[1752455284962,0.00108379,118870.0,118860.0,0.94078503]
[1752455285174,0.00108379,118870.0,118860.0,1.06950503]
[1752455286938,0.00108379,118870.0,118860.0,1.09446224]
[1752455287152,0.00108379,118870.0,118860.0,0.96574224]
[1752455287365,0.00108379,118870.0,118860.0,1.09438224]
[1752455288893,8.379e-05,118870.0,118860.0,1.09438224]
[1752455289333,0.00108379,118870.0,118860.0,1.09638224]
[1752455294134,0.00108379,118870.0,118860.0,0.96774224]
[1752455294350,0.00108379,118870.0,118860.0,1.07138503]
[1752455297313,0.00108379,118870.0,118860.0,0.94278503]
[1752455297522,0.00108379,118870.0,118860.0,1.07138503]
[1752455301015,0.00108379,118870.0,118860.0,1.09699213]
[1752455305717,0.00108379,118870.0,118860.0,1.20175213]
[1752455306557,0.00108379,118870.0,118860.0,1.07315213]
[1752455306767,0.00108379,118870.0,118860.0,1.17480503]
[1752455307589,0.00108379,118870.0,118860.0,1.17484503]
[1752455308448,0.00108379,118870.0,118860.0,1.17602503]
[1752455308836,0.00108379,118870.0,118860.0,1.53101928]
[1752455309273,0.00108379,118870.0,118860.0,1.58101928]
[1752455309484,0.00298,118910.0,118900.0,0.01454085]